bitfinex/quotes_BTCUSD_20251114
["timestamp","ask_amount","ask_price","bid_price","bid_amount"]
[1763137432740,0.20699438,96621.0,96601.0,0.39076]
[1763137432948,0.01034875,96630.0,96601.0,0.39076]
[1763137433179,0.20699174,96623.0,96601.0,0.39076]
[1763137433388,0.20698856,96624.0,96601.0,0.39076]
[1763137433832,0.2069971,96620.0,96601.0,0.39176]
[1763137434035,0.20698856,96624.0,96601.0,0.39076]
[1763137434239,0.20699139,96623.0,96601.0,0.39076]
[1763137434526,0.20699774,96620.0,96601.0,0.39176]
[1763137434725,0.20700707,96616.0,96601.0,0.39276]
[1763137434888,0.20699628,96621.0,96601.0,0.39276]
[1763137435089,0.01034875,96630.0,96611.0,0.323]
[1763137435090,0.20698854,96624.0,96611.0,0.323]
[1763137435291,0.20698918,96624.0,96612.0,0.06772]
[1763137435615,0.20696528,96635.0,96612.0,0.06772]
[1763137435616,0.01054768,96640.0,96612.0,0.06772]
[1763137435817,0.2069861,96625.0,96612.0,0.07819226]
[1763137435996,0.01054768,96640.0,96612.0,0.07819226]
[1763137436196,0.20696735,96634.0,96612.0,0.07819226]
[1763137436397,0.20696337,96636.0,96612.0,0.07819226]
[1763137436630,0.2069784,96629.0,96612.0,0.07919226]
[1763137436924,0.21750327,96640.0,96612.0,0.07919226]
[1763137436925,0.20698327,96627.0,96612.0,0.07919226]
[1763137437155,0.00218024,96613.0,96612.0,0.07919226]
[1763137438141,0.00218024,96613.0,96612.0,0.001]
[1763137438341,0.00218024,96613.0,96612.0,0.07903832]
[1763137438553,0.00218024,96613.0,96612.0,0.06872]
[1763137439288,0.00218024,96613.0,96612.0,0.06972]
[1763137439661,0.00218024,96613.0,96612.0,0.80334225]
[1763137439857,0.00218024,96613.0,96612.0,0.80234225]
[1763137440460,0.00218024,96613.0,96612.0,0.80334225]
[1763137441187,0.00218024,96613.0,96612.0,0.80234225]
[1763137441546,0.00218024,96613.0,96612.0,0.80334225]
[1763137441968,0.00218024,96613.0,96612.0,0.80234225]
[1763137442176,0.00218024,96613.0,96612.0,1.13770825]
[1763137442396,0.00218024,96613.0,96612.0,1.13670825]
[1763137442942,0.00218024,96613.0,96612.0,0.84900325]
[1763137443212,0.00218024,96613.0,96612.0,0.80334225]
[1763137443369,0.00218024,96613.0,96612.0,0.79272]
[1763137443576,0.00218024,96613.0,96612.0,0.91207505]
[1763137443778,0.00218024,96613.0,96612.0,0.79372]
[1763137443971,0.00218024,96613.0,96612.0,0.79072]
[1763137444375,0.00218024,96613.0,96612.0,0.79272]
[1763137444705,0.00218024,96613.0,96612.0,1.005373]
[1763137445107,0.00218024,96613.0,96612.0,0.990156]
[1763137445673,0.00218024,96613.0,96612.0,0.989156]
[1763137445874,0.00218024,96613.0,96612.0,0.928989]
[1763137446726,0.00218024,96613.0,96612.0,0.927989]
[1763137446901,0.0002,96640.0,96631.0,0.323]
[1763137447267,0.0002,96640.0,96639.0,0.08552059]
[1763137447468,0.0002,96640.0,96639.0,0.47620059]
[1763137447790,0.20715364,96640.0,96639.0,0.40852059]
[1763137448034,0.00065237,96640.0,96639.0,0.47620059]
[1763137448438,0.00065237,96640.0,96639.0,0.323]
[1763137448642,0.00065237,96640.0,96639.0,0.39068]
[1763137451110,0.00065237,96640.0,96639.0,0.06768]
[1763137453424,0.2069707,96633.0,96631.0,0.323]
[1763137453631,0.2069707,96633.0,96630.0,0.5]
[1763137453833,0.20745711,96631.0,96630.0,0.5]
[1763137454049,0.0004842,96631.0,96630.0,0.5]
[1763137455492,0.0004842,96631.0,96630.0,0.51]
[1763137455493,0.0347442,96631.0,96630.0,0.51]
[1763137455914,0.0347442,96631.0,96630.0,0.5]
[1763137457998,0.0347442,96631.0,96630.0,0.49968786]
[1763137458145,0.0357442,96631.0,96630.0,0.49968786]
[1763137458350,0.14684294,96631.0,96630.0,0.49999986]
[1763137459018,0.1034242,96631.0,96630.0,0.49999986]
[1763137460187,0.14684294,96631.0,96630.0,0.49999986]
[1763137460777,0.20701576,96611.0,96610.0,0.01]
[1763137460994,0.20701576,96611.0,96591.0,0.323]
[1763137460995,0.20705648,96592.0,96591.0,0.323]
[1763137461214,0.05952,96611.0,96610.0,0.01]
[1763137461416,0.05952,96611.0,96591.0,0.39068]
[1763137461417,0.20704465,96598.0,96591.0,0.39068]
[1763137461642,0.20704619,96597.0,96592.0,0.01214073]
[1763137461845,0.20705648,96592.0,96591.0,0.06768]
[1763137462050,0.2070672,96587.0,96586.0,0.08552059]
[1763137462275,0.2070672,96587.0,96586.0,0.08565624]
[1763137462720,0.20705648,96592.0,96586.0,0.08565624]
[1763137462924,0.20704006,96600.0,96587.0,0.01214443]
[1763137463092,0.37605052,96610.0,96587.0,0.01214443]
[1763137463373,0.20702626,96607.0,96590.0,0.2]
[1763137463689,0.20702004,96609.0,96600.0,0.01]
[1763137463891,0.37604945,96620.0,96601.0,0.06768]
[1763137463892,0.01034982,96620.0,96601.0,0.06768]
[1763137464098,0.20701071,96614.0,96602.0,0.01213291]
[1763137464301,0.20700136,96618.0,96602.0,0.01213291]
[1763137464476,0.20698543,96626.0,96602.0,0.01213291]
[1763137464688,0.01034875,96630.0,96602.0,0.01213291]
[1763137464886,0.2069782,96629.0,96611.0,0.323]
[1763137465086,0.20696964,96633.0,96612.0,0.07980776]
[1763137465255,0.01966799,96632.0,96612.0,0.07980776]
[1763137465456,0.20697915,96629.0,96612.0,0.07980776]
[1763137465828,0.20697291,96631.0,96612.0,0.07980776]
[1763137465986,0.20698108,96628.0,96612.0,0.07980776]
[1763137466171,0.20696899,96633.0,96620.0,0.01]
[1763137466172,0.00024212,96622.0,96620.0,0.01]
[1763137466354,0.00024212,96622.0,96621.0,0.06768]
[1763137467777,0.00024212,96622.0,96621.0,1.08334674]
[1763137467987,0.0002,96640.0,96631.0,0.323]
[1763137468191,0.0002,96650.0,96642.0,0.323]
[1763137468435,0.00045237,96650.0,96646.0,0.323]
[1763137468636,0.00045237,96650.0,96648.0,0.323]
[1763137468820,0.00045237,96650.0,96649.0,0.85261659]
[1763137469016,0.00045237,96650.0,96649.0,0.59337159]
[1763137469226,0.00045237,96650.0,96649.0,1.03679033]
[1763137469438,0.00045237,96650.0,96649.0,0.97579033]
[1763137471231,0.00045237,96650.0,96649.0,0.97779033]
[1763137471504,0.00045237,96650.0,96649.0,1.04547033]
[1763137471708,0.00045237,96650.0,96649.0,1.04747033]
[1763137472888,0.00045237,96650.0,96649.0,1.04547033]
[1763137473088,0.0002,96660.0,96652.0,0.36641874]
[1763137473313,0.0003356,96660.0,96656.0,0.36641874]
[1763137473533,0.0002,96670.0,96660.0,0.78641872]
[1763137473742,0.0002,96680.0,96660.0,0.78641872]
[1763137473743,0.0002,96680.0,96671.0,2.36641874]
[1763137473929,0.0002,96680.0,96670.0,0.43999998]
[1763137473930,0.0002,96680.0,96670.0,0.4]
[1763137474136,0.0002,96680.0,96675.0,0.323]
[1763137474290,0.0002,96680.0,96670.0,0.76569963]
[1763137474484,0.0002,96680.0,96673.0,0.323]
[1763137474734,0.00139812,96674.0,96671.0,0.4]
[1763137474937,0.0002,96680.0,96672.0,0.06768]
[1763137475338,0.0002,96680.0,96673.0,0.4]
[1763137475538,0.0002,96680.0,96674.0,0.323]
[1763137476004,2.542e-05,96680.0,96674.0,0.323]
[1763137476406,2.542e-05,96680.0,96672.0,0.06968]
[1763137477180,0.20687418,96678.0,96672.0,0.06968]
[1763137477365,2.542e-05,96680.0,96672.0,0.06768]
[1763137477577,2.542e-05,96680.0,96674.0,0.001]
[1763137477777,0.20689481,96680.0,96674.0,0.001]
[1763137477991,0.19007025,96684.0,96672.0,0.06868]
[1763137478191,0.20686732,96681.0,96672.0,0.06768]
[1763137478408,0.20687018,96679.0,96672.0,0.06768]
[1763137478644,0.00013552,96681.0,96672.0,0.06868]
[1763137478838,0.00013552,96681.0,96672.0,0.06968]
[1763137479042,0.00013552,96681.0,96672.0,0.06868]
[1763137479375,0.20686801,96680.0,96673.0,0.01209695]
[1763137479579,0.20686801,96680.0,96670.0,0.9]
[1763137479580,0.23771727,96671.0,96670.0,0.2485283]
[1763137479894,0.23771727,96671.0,96670.0,0.4511293]
[1763137480506,0.03083,96671.0,96670.0,0.4611293]
[1763137480705,0.02472,96685.0,96670.0,0.8999993]
[1763137480935,0.20686074,96684.0,96671.0,0.10148761]
[1763137481163,0.20686477,96682.0,96671.0,0.08939]
[1763137481406,0.02472,96685.0,96671.0,0.41239]
[1763137481550,0.23155808,96694.0,96680.0,0.03159]
[1763137481764,0.20686407,96682.0,96680.0,0.06764]
[1763137481979,0.23156014,96694.0,96680.0,0.06764]
[1763137482179,0.02472,96696.0,96680.0,0.06764]
[1763137482180,0.02472,96696.0,96680.0,0.07764]
[1763137482375,0.0002,96700.0,96680.0,0.07764]
[1763137482376,0.0002,96700.0,96680.0,0.39064]
[1763137482558,0.0002,96700.0,96680.0,0.44405874]
[1763137482764,0.0002,96700.0,96680.0,0.94735774]
[1763137482957,0.0002,96700.0,96680.0,0.72681274]
[1763137483348,0.0002,96700.0,96680.0,0.73681274]
[1763137483830,0.0002,96700.0,96680.0,0.72781274]
[1763137484070,0.0002,96700.0,96680.0,0.73781274]
[1763137484387,0.20683148,96698.0,96680.0,0.56446163]
[1763137484589,0.02472,96689.0,96680.0,0.51164589]
[1763137484798,0.20683475,96696.0,96680.0,0.51364589]
[1763137485188,0.02492,96690.0,96680.0,0.40278989]
[1763137485390,0.20684959,96689.0,96680.0,0.40278989]
[1763137485612,0.03096552,96681.0,96680.0,0.40364]
[1763137485785,0.00013552,96681.0,96680.0,0.80398995]
[1763137486007,0.00013552,96681.0,96680.0,0.80198995]
[1763137486210,0.00013552,96681.0,96680.0,1.16424395]
[1763137486410,0.00172174,96681.0,96680.0,1.14015795]
[1763137486613,0.00172174,96681.0,96680.0,1.15015795]
[1763137486840,0.00172174,96681.0,96680.0,1.06743395]
[1763137487033,0.00172174,96681.0,96680.0,0.93216395]
[1763137487246,0.00172174,96681.0,96680.0,0.93416395]
[1763137487585,0.00172174,96681.0,96680.0,0.80298995]
[1763137487823,0.00172174,96681.0,96680.0,0.80398995]
[1763137488025,0.20858761,96681.0,96680.0,0.726]
[1763137488226,0.20858761,96681.0,96680.0,0.326]
[1763137488426,0.20858761,96681.0,96680.0,0.40364]
[1763137488427,0.23941761,96681.0,96680.0,0.40364]
[1763137489047,0.23941761,96681.0,96680.0,0.39364]
[1763137489249,0.03255174,96681.0,96680.0,0.39364]
[1763137489625,0.01573667,96681.0,96680.0,0.39364]
[1763137489828,0.02472,96689.0,96680.0,0.59364]
[1763137490042,0.02472,96689.0,96688.0,0.08552059]
[1763137490237,0.02472,96689.0,96688.0,0.47616059]
[1763137490464,0.05555,96689.0,96688.0,0.47616059]
[1763137490778,0.05555,96689.0,96688.0,0.323]
[1763137491192,0.20704687,96690.0,96688.0,0.323]
[1763137491366,0.0002,96690.0,96689.0,0.37059]
[1763137492003,0.0002,96690.0,96689.0,0.323]
[1763137492639,0.0002,96690.0,96689.0,0.32263066]
[1763137493409,0.0002,96690.0,96684.0,0.06764]
[1763137493611,0.0002,96690.0,96689.0,0.001]
[1763137494328,0.0002,96690.0,96684.0,0.06764]
[1763137494714,0.0002,96690.0,96684.0,0.06864]
[1763137494924,0.0002,96690.0,96686.0,0.323]
[1763137495128,0.0002,96690.0,96687.0,0.01209048]
[1763137495552,0.00044187,96690.0,96688.0,0.04759]
[1763137495757,0.0002,96700.0,96690.0,0.78641874]
[1763137495930,0.0002,96700.0,96699.0,0.03159]
[1763137496132,0.0002,96700.0,96699.0,0.09923]
[1763137496340,0.0002,96700.0,96699.0,0.07972427]
[1763137496760,0.0004687,96700.0,96699.0,0.06764]
[1763137497306,0.0004687,96700.0,96699.0,0.06864]
[1763137497505,0.0004687,96700.0,96699.0,0.06964]
[1763137498034,0.0004687,96700.0,96699.0,0.43605874]
[1763137498659,0.0004687,96700.0,96699.0,0.43505874]
[1763137498860,0.0004687,96700.0,96699.0,0.43605874]
[1763137499264,0.0004687,96700.0,96699.0,0.43505874]
[1763137499636,0.00010265,96710.0,96701.0,0.323]
[1763137499882,0.00010265,96710.0,96709.0,0.05269]
[1763137500088,0.00010265,96710.0,96709.0,0.44333]
[1763137500290,0.00010265,96710.0,96709.0,0.41174]
[1763137501472,0.00010265,96710.0,96709.0,0.45515874]
[1763137501670,0.0002,96720.0,96709.0,0.45515874]
[1763137501671,0.00010265,96720.0,96719.0,0.0309]
[1763137501889,0.00023817,96720.0,96719.0,0.09854]
[1763137502148,0.00023817,96720.0,96712.0,0.323]
[1763137502411,0.00023817,96720.0,96713.0,0.06764]
[1763137502603,0.2067869,96718.0,96713.0,0.06764]
[1763137502882,0.20679129,96716.0,96714.0,0.06764]
[1763137503087,0.20679129,96716.0,96711.0,0.323]
[1763137503088,0.20679892,96713.0,96711.0,0.323]
[1763137503264,0.02305,96719.0,96712.0,0.0676]
[1763137503475,0.20679569,96714.0,96712.0,0.0696]
[1763137503687,0.00023817,96720.0,96713.0,0.0676]
[1763137503887,0.00023817,96720.0,96712.0,0.001]
[1763137503888,0.2067957,96714.0,96712.0,0.001]
[1763137504053,0.05398,96713.0,96712.0,0.001]
[1763137504457,0.0002,96730.0,96712.0,0.001]
[1763137504659,0.0002,96730.0,96712.0,0.01307589]
[1763137504865,0.20679073,96717.0,96713.0,0.0676]
[1763137505071,0.0002,96730.0,96713.0,0.0676]
[1763137505072,0.20677863,96722.0,96713.0,0.11405]
[1763137505437,0.20677644,96723.0,96713.0,0.0676]
[1763137505647,0.20677506,96724.0,96713.0,0.3906]
[1763137505844,0.00037611,96714.0,96713.0,0.3906]
[1763137506762,0.00037611,96714.0,96713.0,0.0676]
[1763137506974,0.00037611,96714.0,96713.0,0.08067679]
[1763137507175,0.00037611,96714.0,96713.0,0.07967679]
[1763137507585,0.00037611,96714.0,96713.0,0.08067679]
[1763137507807,0.00037611,96714.0,96713.0,0.0676]
[1763137508008,0.00037611,96714.0,96711.0,0.323]
[1763137508209,0.22984379,96715.0,96713.0,0.324]
[1763137508615,0.22984379,96715.0,96714.0,0.323]
[1763137509035,0.26302379,96715.0,96714.0,0.323]
[1763137509249,0.26302379,96715.0,96713.0,0.001]
[1763137509471,0.03318,96714.0,96713.0,0.001]
[1763137509699,0.18999976,96707.0,96703.0,0.0676]
[1763137509902,0.20681543,96705.0,96703.0,0.0676]
[1763137510111,0.03318,96704.0,96703.0,0.0676]
[1763137510528,0.03318,96704.0,96691.0,0.323]
[1763137510742,0.02305,96715.0,96700.0,0.2]
[1763137510743,0.25608956,96713.0,96700.0,0.2]
[1763137510944,0.20680914,96708.0,96703.0,0.001]
[1763137511146,0.20681311,96706.0,96704.0,0.0676]
[1763137511351,0.02305,96715.0,96704.0,0.0676]
[1763137511555,0.01057729,96720.0,96711.0,0.323]
[1763137511761,0.01057729,96720.0,96714.0,0.01509]
[1763137511762,0.20679192,96716.0,96714.0,0.01509]
[1763137511950,0.20679105,96717.0,96714.0,0.01509]
[1763137512241,0.2067929,96716.0,96714.0,0.01509]
[1763137512392,0.00023817,96720.0,96715.0,0.01207592]
[1763137512595,0.00023817,96720.0,96717.0,0.323]
[1763137512820,3.668e-05,96720.0,96719.0,0.323]
[1763137513798,3.668e-05,96720.0,96710.0,0.823]
[1763137513799,0.2068017,96711.0,96710.0,0.823]
[1763137513997,0.2068017,96711.0,96710.0,0.8906]
[1763137514197,0.20709723,96711.0,96710.0,0.8906]
[1763137514402,0.00029553,96711.0,96710.0,0.8906]
[1763137515240,0.20709723,96711.0,96710.0,0.8906]
[1763137515452,0.20709723,96711.0,96710.0,0.823]
[1763137515847,0.20709723,96711.0,96710.0,0.824]
[1763137516048,0.20709723,96711.0,96710.0,0.825]
[1763137516286,0.20709723,96711.0,96710.0,0.823]
[1763137516535,0.00029553,96711.0,96710.0,0.324]
[1763137516730,0.00029553,96711.0,96710.0,0.325]
[1763137516944,0.00029553,96711.0,96710.0,0.324]
[1763137517145,0.00029553,96711.0,96710.0,0.325]
[1763137517346,0.20709723,96711.0,96710.0,0.39164]
[1763137517518,0.00029553,96711.0,96710.0,0.39164]
[1763137517733,0.00029553,96711.0,96710.0,0.39264]
[1763137517881,0.00029553,96711.0,96710.0,0.39164]
[1763137518307,0.00029553,96711.0,96710.0,0.39264]
[1763137518720,0.00029553,96711.0,96710.0,0.39164]
[1763137519297,0.00029553,96711.0,96710.0,0.39264]
[1763137519642,0.00029553,96711.0,96710.0,0.39064]
[1763137519838,8.195e-05,96730.0,96720.0,0.41]
[1763137520046,8.195e-05,96730.0,96721.0,0.06764]
[1763137520248,8.195e-05,96730.0,96729.0,0.01985]
[1763137520448,8.195e-05,96730.0,96729.0,0.08749]
[1763137520591,8.195e-05,96730.0,96729.0,0.44099]
[1763137520789,1.262e-05,96730.0,96729.0,0.5903804]
[1763137520988,1.262e-05,96730.0,96729.0,0.84587414]
[1763137521195,1.262e-05,96730.0,96729.0,0.69648374]
[1763137521395,1.262e-05,96730.0,96729.0,0.96678774]
[1763137521787,1.262e-05,96730.0,96729.0,1.02133274]
[1763137522183,1.262e-05,96730.0,96729.0,0.99963174]
[1763137522377,1.262e-05,96730.0,96729.0,0.98030574]
[1763137522602,1.262e-05,96730.0,96729.0,0.74485]
[1763137522817,1.262e-05,96730.0,96729.0,0.81245]
[1763137522991,1.262e-05,96730.0,96729.0,0.81445]
[1763137523374,1.262e-05,96730.0,96729.0,0.81245]
[1763137523593,1.262e-05,96730.0,96729.0,0.41445]
[1763137524039,1.262e-05,96730.0,96729.0,0.41045]
[1763137524416,1.262e-05,96730.0,96729.0,0.41245]
[1763137524976,1.262e-05,96730.0,96729.0,0.41045]
[1763137526822,1.262e-05,96730.0,96729.0,0.5598404]
[1763137527032,1.262e-05,96730.0,96729.0,0.4932404]
[1763137527252,0.00052294,96730.0,96729.0,0.5608804]
[1763137528086,0.00052294,96730.0,96729.0,0.5609204]
[1763137528299,0.00052294,96730.0,96729.0,0.5599204]
[1763137528684,0.00052294,96730.0,96729.0,0.5609204]
[1763137529717,0.20728402,96730.0,96729.0,0.4932804]
[1763137529921,0.00052294,96730.0,96729.0,0.5609204]
[1763137531527,0.00052294,96730.0,96729.0,0.5599204]
[1763137532353,0.00052294,96730.0,96729.0,0.5609204]
[1763137532514,0.00052294,96730.0,96729.0,0.5609604]
[1763137533341,0.00052294,96730.0,96729.0,0.5610004]
[1763137533719,0.00052294,96730.0,96729.0,0.9610004]
[1763137534125,0.00052294,96730.0,96729.0,1.68281114]
[1763137534931,0.00052294,96730.0,96729.0,1.68181114]
[1763137535109,0.00052294,96730.0,96729.0,1.68281114]
[1763137535345,0.0002,96750.0,96744.0,0.03193]
[1763137535565,0.00065156,96750.0,96749.0,0.08552059]
[1763137535802,0.00065156,96750.0,96749.0,0.44045059]
[1763137536021,0.00065156,96750.0,96749.0,0.55791099]
[1763137536238,0.00065156,96750.0,96749.0,0.95111073]
[1763137537086,0.18314039,96777.0,96761.0,0.323]
[1763137537287,0.18314039,96777.0,96760.0,0.41]
[1763137537288,0.18327583,96777.0,96776.0,0.01509]
[1763137537588,0.18327583,96777.0,96776.0,0.11462]
[1763137538219,0.18327583,96777.0,96776.0,0.08269]
[1763137538220,0.00013544,96777.0,96776.0,0.08269]
[1763137538435,0.00113544,96777.0,96776.0,0.08269]
[1763137539257,0.0002,96820.0,96776.0,1.60546874]
[1763137539464,0.01032951,96810.0,96789.0,0.81956]
[1763137539688,0.0002,96820.0,96789.0,0.93057874]
[1763137539901,0.01052844,96820.0,96810.0,0.2]
[1763137540089,0.01052844,96820.0,96819.0,0.0198]
[1763137540090,0.21723272,96820.0,96819.0,0.0198]
[1763137540331,0.00033539,96820.0,96819.0,0.11933]
[1763137540735,0.00033539,96820.0,96819.0,0.0874]
[1763137541331,0.00275022,96820.0,96819.0,0.0874]
[1763137542319,0.00275022,96820.0,96819.0,0.0676]
[1763137542553,0.20932124,96820.0,96819.0,0.0676]
[1763137542773,0.00275022,96820.0,96819.0,0.11499]
[1763137542991,0.00275022,96820.0,96819.0,0.11399]
[1763137543208,0.00275022,96820.0,96819.0,0.0686]
[1763137543628,0.00275022,96820.0,96819.0,0.11599]
[1763137544079,0.00275022,96820.0,96819.0,0.0686]
[1763137544512,0.00275022,96820.0,96819.0,0.0676]
[1763137545400,0.00275022,96820.0,96819.0,0.0686]
[1763137546663,0.00275022,96820.0,96819.0,0.43501874]
[1763137546863,0.00275022,96820.0,96819.0,0.85138674]
[1763137547301,0.00275022,96820.0,96819.0,0.85238674]
[1763137547700,0.00275022,96820.0,96819.0,0.85038674]
[1763137548135,0.00275022,96820.0,96819.0,0.85438674]
[1763137548322,0.00275022,96820.0,96819.0,0.85238674]
[1763137548499,0.00275022,96820.0,96819.0,1.25234674]
[1763137548865,0.00275022,96820.0,96819.0,1.25434674]
[1763137549078,9e-05,96876.0,96860.0,0.2]
[1763137549293,0.21723676,96870.0,96869.0,0.01747]
[1763137549424,0.21723676,96870.0,96869.0,0.08503]
[1763137550998,0.21723676,96870.0,96869.0,0.01747]
[1763137551152,0.21723676,96870.0,96869.0,0.08503]
[1763137551505,0.00045139,96870.0,96869.0,0.08503]
[1763137551662,0.20691365,96870.0,96869.0,0.01747]
[1763137552070,0.20691365,96870.0,96869.0,0.08503]
[1763137552274,0.20691365,96870.0,96869.0,0.13142]
[1763137552482,0.20691365,96870.0,96869.0,0.08503]
[1763137554294,0.00045139,96870.0,96869.0,0.08503]
[1763137554720,0.20825391,96870.0,96869.0,0.08503]
[1763137554996,0.20825391,96870.0,96869.0,0.01747]
[1763137555198,0.20647932,96862.0,96861.0,0.323]
[1763137555620,0.20647932,96862.0,96861.0,0.39052]
[1763137555621,0.20760523,96862.0,96861.0,0.39052]
[1763137556205,0.20760523,96862.0,96860.0,0.5]
[1763137556426,0.20647932,96862.0,96860.0,0.5]
[1763137556631,0.02690929,96861.0,96860.0,0.5]
[1763137556854,0.00109911,96861.0,96860.0,0.5]
[1763137558167,0.20758056,96861.0,96860.0,0.37194959]
[1763137558524,0.20758056,96861.0,96860.0,0.56751959]
[1763137558726,0.20758056,96861.0,96860.0,0.49999959]
[1763137558891,0.20758056,96861.0,96860.0,0.56751959]
[1763137559144,0.00109911,96861.0,96860.0,0.56751959]
[1763137559348,0.00109911,96861.0,96860.0,0.90051959]
[1763137559745,0.00109911,96861.0,96860.0,0.89051959]
[1763137560143,0.00109911,96861.0,96860.0,0.90051959]
[1763137560346,0.00109911,96861.0,96860.0,0.89151959]
[1763137561004,0.00109911,96861.0,96860.0,0.89251959]
[1763137561333,0.00109911,96861.0,96860.0,0.89151959]
[1763137561677,0.00109911,96861.0,96860.0,0.56951959]
[1763137562090,0.03072911,96861.0,96860.0,0.51099959]
[1763137562491,0.03072911,96861.0,96860.0,1e-08]
[1763137562968,0.03072911,96861.0,96814.0,0.1493904]
[1763137562969,0.20657742,96816.0,96813.0,0.02672]
[1763137563601,0.20660089,96805.0,96791.0,0.04284]
[1763137563804,0.20662651,96793.0,96792.0,0.06752]
[1763137564193,0.20662561,96794.0,96792.0,0.06765539]
[1763137564959,0.3098938,96808.0,96792.0,0.06765539]
[1763137564960,0.01032844,96820.0,96792.0,0.06765539]
[1763137565095,0.20662651,96793.0,96792.0,0.00013539]
[1763137565698,0.20662651,96793.0,96792.0,0.00113539]
[1763137566232,0.20662651,96793.0,96792.0,0.00013539]
[1763137567797,0.23625651,96793.0,96792.0,0.00013539]
[1763137568792,0.27967525,96793.0,96792.0,1e-08]
[1763137569481,0.23625651,96793.0,96792.0,1e-08]
[1763137569652,0.30377651,96793.0,96792.0,1e-08]
[1763137569860,0.30477651,96793.0,96792.0,1e-08]
[1763137570066,0.23625651,96793.0,96792.0,1e-08]
[1763137570291,0.30377651,96793.0,96792.0,1e-08]
[1763137570427,0.20862651,96793.0,96792.0,1e-08]
[1763137571238,0.20662651,96793.0,96792.0,1e-08]
[1763137571686,0.20762651,96793.0,96792.0,1e-08]
[1763137572086,0.24059651,96793.0,96792.0,1e-08]
[1763137572494,0.20762651,96793.0,96792.0,1e-08]
[1763137573049,0.24059651,96793.0,96792.0,1e-08]
[1763137573721,0.20762651,96793.0,96792.0,1e-08]
[1763137574675,0.24059651,96793.0,96792.0,1e-08]
[1763137577108,0.20762651,96793.0,96792.0,1e-08]
[1763137577545,0.20762651,96793.0,96792.0,0.14939041]
[1763137578180,0.20762651,96793.0,96792.0,0.32300001]
[1763137578181,0.001,96793.0,96792.0,0.32300001]
[1763137578639,0.001,96793.0,96792.0,0.47239041]
[1763137578880,0.001,96793.0,96792.0,0.48463901]
[1763137579093,0.20660599,96803.0,96801.0,0.3428]
[1763137579094,0.2066073,96802.0,96801.0,0.3428]
[1763137579552,0.2395773,96802.0,96801.0,0.323]
[1763137579767,0.20662651,96793.0,96792.0,1e-08]
[1763137579990,0.20662651,96793.0,96792.0,0.00100001]
[1763137580189,0.23959651,96793.0,96792.0,0.00100001]
[1763137580403,0.23959651,96793.0,96792.0,1e-08]
[1763137581882,0.30715651,96793.0,96792.0,1e-08]
[1763137582081,0.27418651,96793.0,96792.0,1e-08]
[1763137583050,0.20762651,96793.0,96792.0,1e-08]
[1763137583238,0.20662651,96793.0,96792.0,1e-08]
[1763137583581,0.20762651,96793.0,96792.0,1e-08]
[1763137584665,0.24059651,96793.0,96792.0,1e-08]
[1763137585215,0.20762651,96793.0,96792.0,1e-08]
[1763137587421,0.00024135,96829.0,96802.0,0.1711]
[1763137587632,0.00024135,96829.0,96801.0,0.03113]
[1763137587633,0.00024135,96829.0,96828.0,0.01897]
[1763137587833,0.00024135,96829.0,96828.0,0.08653]
[1763137588299,0.00024135,96829.0,96828.0,0.09692923]
[1763137588755,0.00024135,96829.0,96828.0,0.73933723]
[1763137588966,0.00037666,96829.0,96828.0,0.73933723]
[1763137589171,7.995e-05,96829.0,96828.0,0.78275597]
[1763137589934,7.995e-05,96829.0,96828.0,0.78475597]
[1763137590140,7.995e-05,96829.0,96828.0,0.71519597]
[1763137590494,7.995e-05,96829.0,96828.0,0.75098897]
[1763137590687,7.995e-05,96829.0,96828.0,0.75298897]
[1763137590888,7.995e-05,96829.0,96828.0,0.68534897]
[1763137591137,7.995e-05,96829.0,96828.0,0.75298897]
[1763137591338,7.995e-05,96829.0,96828.0,0.80095897]
[1763137591543,7.995e-05,96829.0,96828.0,1.15498897]
[1763137591729,7.995e-05,96829.0,96828.0,0.97446097]
[1763137591857,7.995e-05,96829.0,96828.0,0.86342797]
[1763137592086,7.995e-05,96829.0,96828.0,0.79978797]
[1763137592293,7.995e-05,96829.0,96828.0,0.07164]
[1763137592501,7.995e-05,96829.0,96828.0,0.06764]
[1763137592923,7.995e-05,96829.0,96828.0,0.199232]
[1763137593149,7.995e-05,96829.0,96828.0,0.201232]
[1763137593485,7.995e-05,96829.0,96828.0,0.93259602]
[1763137593946,7.995e-05,96829.0,96828.0,0.93359602]
[1763137594169,0.01032524,96850.0,96828.0,0.2463]
[1763137594384,0.02314,96830.0,96829.0,0.4728]
[1763137594570,0.01077635,96850.0,96830.0,0.523]
[1763137594571,0.20651983,96844.0,96830.0,0.523]
[1763137594826,0.02314,96849.0,96830.0,0.323]
[1763137594827,0.20654387,96832.0,96830.0,0.323]
[1763137595028,0.03161,96831.0,96830.0,0.323]
[1763137595459,0.02314,96849.0,96841.0,0.323]
[1763137595460,0.22964782,96849.0,96841.0,0.323]
[1763137595677,0.02314,96849.0,96842.0,0.06764]
[1763137595899,0.00045111,96850.0,96842.0,0.06764]
[1763137595900,0.00045111,96850.0,96846.0,0.323]
[1763137596064,0.00045111,96850.0,96848.0,0.36641874]
[1763137596276,0.00045111,96850.0,96849.0,1.62471274]
[1763137596572,0.00045111,96850.0,96849.0,0.65465274]
[1763137597017,0.00045111,96850.0,96849.0,0.63245674]
[1763137597196,0.00045111,96850.0,96849.0,0.46768]
[1763137597424,0.00999999,96910.0,96849.0,0.63421]
[1763137597627,0.2063642,96917.0,96849.0,0.63421]
[1763137597628,0.01031565,96940.0,96883.0,0.04341874]
[1763137597831,0.01031459,96950.0,96889.0,2.07409874]
[1763137598064,0.20629912,96947.0,96889.0,2.16733874]
[1763137598279,0.01709369,96946.0,96889.0,2.17765333]
[1763137598501,0.01031672,96930.0,96889.0,0.48796233]
[1763137598734,0.20639491,96902.0,96889.0,0.323]
[1763137598944,0.01031885,96910.0,96889.0,0.323]
[1763137598945,0.01031885,96910.0,96889.0,0.391]
[1763137599160,0.20640043,96900.0,96889.0,0.391]
[1763137599385,0.20640538,96897.0,96889.0,0.394]
[1763137599644,0.01031885,96910.0,96889.0,0.394]
[1763137599645,0.01031885,96910.0,96889.0,0.074]
[1763137599861,0.01031885,96910.0,96889.0,0.003]
[1763137599862,0.20641052,96895.0,96889.0,0.003]
[1763137600087,0.20641937,96891.0,96889.0,0.003]
[1763137600716,0.20641554,96892.0,96889.0,0.003]
[1763137600942,0.01031885,96910.0,96889.0,0.003]